bitfinex/quotes_BTCUSD_20230103
["timestamp","ask_amount","ask_price","bid_price","bid_amount"]
[1672769478660,0.01564189,16649.0,16648.0,8.39263931]
[1672769478883,0.01564189,16649.0,16648.0,8.68541253]
[1672769479139,0.01564189,16649.0,16648.0,8.41637327]
[1672769479373,0.01564189,16649.0,16648.0,8.23699629]
[1672769479616,0.01564189,16649.0,16648.0,8.12360005]
[1672769479879,0.01564189,16649.0,16648.0,7.94422307]
[1672769480638,0.01564189,16649.0,16648.0,8.12360005]
[1672769483641,0.01564189,16649.0,16648.0,8.30300411]
[1672769483899,0.01564189,16649.0,16648.0,7.94422307]
[1672769484156,0.01564189,16649.0,16648.0,8.29239911]
[1672769484658,0.01564189,16649.0,16648.0,7.94422307]
[1672769485408,0.01564189,16649.0,16648.0,8.29568015]
[1672769485672,0.01564189,16649.0,16648.0,8.31366175]
[1672769485915,0.01564189,16649.0,16648.0,7.96220467]
[1672769486683,0.01564189,16649.0,16648.0,8.14158165]
[1672769486933,0.01564189,16649.0,16648.0,7.8084119]
[1672769487191,0.01564189,16649.0,16648.0,8.13125332]
[1672769488456,0.01564189,16649.0,16648.0,7.76442307]
[1672769488811,0.01564189,16649.0,16648.0,8.07880726]
[1672769489241,0.01564189,16649.0,16648.0,8.37906726]
[1672769489498,0.01564189,16649.0,16648.0,8.06468307]
[1672769490000,0.01564189,16649.0,16648.0,8.24406005]
[1672769490270,0.01564189,16649.0,16648.0,8.26204165]
[1672769492057,0.01564189,16649.0,16648.0,8.53108091]
[1672769492626,0.01564189,16649.0,16648.0,9.03475834]
[1672769493077,0.01553071,16649.0,16648.0,9.03475834]
[1672769493887,0.01553071,16649.0,16648.0,9.03474834]
[1672769494597,0.01553071,16649.0,16648.0,9.39364663]
[1672769495101,0.01553071,16649.0,16648.0,9.03474834]
[1672769495864,0.01553071,16649.0,16648.0,9.39364663]
[1672769496620,0.01553071,16649.0,16648.0,9.21426965]
[1672769499834,0.01553071,16649.0,16648.0,8.51426965]
[1672769500113,0.01553071,16649.0,16648.0,8.694081]
[1672769500828,0.01553071,16649.0,16648.0,9.394081]
[1672769505879,0.01553071,16649.0,16648.0,9.093831]
[1672769506143,0.01553071,16649.0,16648.0,9.69794733]
[1672769506619,0.01553071,16649.0,16648.0,8.694081]
[1672769506879,0.01553071,16649.0,16648.0,8.96394853]
[1672769507154,0.01553071,16649.0,16648.0,8.694081]
[1672769507927,0.01553071,16649.0,16648.0,9.03518271]
[1672769508163,0.01553071,16649.0,16648.0,9.39499407]
[1672769508690,0.01553071,16649.0,16648.0,9.03518271]
[1672769508948,0.01553071,16649.0,16648.0,8.5863321]
[1672769512250,0.01553071,16649.0,16648.0,9.03610013]
[1672769512513,0.01553071,16649.0,16648.0,8.1863321]
[1672769513515,0.01553071,16649.0,16648.0,8.5863321]
[1672769514069,0.01544722,16649.0,16648.0,8.5863321]
[1672769514872,0.01340122,16649.0,16648.0,8.5863321]
[1672769515393,0.01340122,16649.0,16648.0,7.8863321]
[1672769516156,0.01340122,16649.0,16648.0,8.5863321]
[1672769516905,0.01340122,16649.0,16648.0,9.81058019]
[1672769517162,0.05598942,16650.0,16649.0,0.00943282]
[1672769517419,0.05598942,16650.0,16649.0,5.50324206]
[1672769517671,0.05598942,16650.0,16649.0,5.34240332]
[1672769517932,0.05598942,16650.0,16649.0,5.79224717]
[1672769518188,0.05598942,16650.0,16649.0,5.81022877]
[1672769518458,0.05598942,16650.0,16649.0,5.93722877]
[1672769518459,0.05798942,16650.0,16649.0,5.93722877]
[1672769519465,0.05798942,16650.0,16649.0,5.93730569]
[1672769520236,0.05798942,16650.0,16649.0,6.11820569]
[1672769522021,0.05798942,16650.0,16649.0,5.66836184]
[1672769522294,0.05798942,16650.0,16649.0,6.11812215]
[1672769523596,0.05798942,16650.0,16649.0,4.96836184]
[1672769524125,0.05798942,16650.0,16649.0,5.41803173]
[1672769524702,0.05798942,16650.0,16649.0,6.11803173]
[1672769526376,0.05798942,16650.0,16649.0,6.26851188]
[1672769526632,0.05798942,16650.0,16649.0,6.71813373]
[1672769526888,0.05798942,16650.0,16649.0,6.26851188]
[1672769528671,0.05798942,16650.0,16649.0,6.71811241]
[1672769529182,0.05798942,16650.0,16649.0,6.26851188]
[1672769529723,0.05798942,16650.0,16649.0,6.71816808]
[1672769529957,0.05798942,16650.0,16649.0,7.01838808]
[1672769530193,0.05798942,16650.0,16649.0,7.01836835]
[1672769530444,0.05798942,16650.0,16649.0,6.56873188]
[1672769530696,0.05798942,16650.0,16649.0,5.86873188]
[1672769531699,0.05798942,16650.0,16649.0,6.56873188]
[1672769533659,0.05798942,16650.0,16649.0,6.56872188]
[1672769537245,0.00664565,16651.0,16650.0,0.54143695]
[1672769537498,0.00664565,16651.0,16650.0,8.68921501]
[1672769537733,0.00664565,16651.0,16650.0,7.98921501]
[1672769538532,0.00664565,16651.0,16650.0,8.31704232]
[1672769538765,0.00864565,16651.0,16650.0,8.9642695]
[1672769539016,0.00864565,16651.0,16650.0,8.63644219]
[1672769539265,0.00864565,16651.0,16650.0,9.0070138]
[1672769539551,0.00864565,16651.0,16650.0,8.82725971]
[1672769539804,0.00864565,16651.0,16650.0,9.18687046]
[1672769540059,0.00864565,16651.0,16650.0,8.82728641]
[1672769540797,0.00864565,16651.0,16650.0,7.9427255]
[1672769541048,0.00864565,16651.0,16650.0,6.55271882]
[1672769541536,0.00864565,16651.0,16650.0,4.17666896]
[1672769541795,0.37947797,16651.0,16650.0,4.17666896]
[1672769542116,0.55952946,16651.0,16650.0,3.19699735]
[1672769542328,0.84475843,16651.0,16650.0,2.9282]
[1672769542564,1.11520314,16651.0,16650.0,1.727]
[1672769542826,1.73198214,16651.0,16650.0,1.727]
[1672769543570,2.09211214,16651.0,16650.0,1.727]
[1672769543815,1.73198214,16651.0,16650.0,1.7355]
[1672769544069,1.73198214,16651.0,16650.0,2.3361]
[1672769544309,1.73198214,16651.0,16650.0,2.9367]
[1672769545313,1.11520314,16651.0,16650.0,2.9367]
[1672769545570,0.84475843,16651.0,16650.0,2.9367]
[1672769545851,0.47392611,16651.0,16650.0,3.23698]
[1672769546602,0.18869714,16651.0,16650.0,3.53698]
[1672769547109,0.18869714,16651.0,16650.0,3.23698]
[1672769547351,0.18869714,16651.0,16650.0,2.63638]
[1672769547605,0.80547614,16651.0,16650.0,2.63638]
[1672769547850,0.56056133,16651.0,16650.0,2.63638]
[1672769548355,0.56056133,16651.0,16650.0,3.23698]
[1672769548613,1.17734033,16651.0,16650.0,2.63638]
[1672769548849,0.56056133,16651.0,16650.0,2.03578]
[1672769549129,1.84230411,16651.0,16650.0,2.0358]
[1672769549388,2.02238262,16651.0,16650.0,2.0358]
[1672769549743,2.2023515,16651.0,16650.0,2.0358]
[1672769549901,1.8422215,16651.0,16650.0,2.6364]
[1672769551653,1.8422215,16651.0,16650.0,2.3361]
[1672769552403,1.8422215,16651.0,16650.0,1.3355]
[1672769553648,1.8422215,16651.0,16650.0,0.6355]
[1672769554390,1.8422215,16651.0,16650.0,1.2361]
[1672769554888,1.57177679,16651.0,16650.0,1.2361]
[1672769555129,1.8422215,16651.0,16650.0,1.2361]
[1672769555904,1.8422215,16651.0,16650.0,0.6355]
[1672769556155,2.02238262,16651.0,16650.0,0.1355]
[1672769556425,2.62294662,16651.0,16650.0,0.1355]
[1672769556669,2.02238262,16651.0,16650.0,0.1355]
[1672769557399,2.20010107,16651.0,16650.0,0.0085]
[1672769557651,2.20210107,16651.0,16650.0,0.1275]
[1672769557907,2.62207441,16651.0,16650.0,0.1275]
[1672769558154,3.58412907,16651.0,16650.0,0.119]
[1672769558406,3.57748342,16651.0,16650.0,0.119]
[1672769559628,2.97691942,16651.0,16650.0,0.119]
[1672769559940,2.79626219,16651.0,16650.0,0.119]
[1672769560165,2.19569819,16651.0,16650.0,0.119]
[1672769560950,2.01523398,16651.0,16650.0,0.119]
[1672769561202,2.37536398,16651.0,16650.0,0.119]
[1672769561712,2.79626219,16651.0,16650.0,0.119]
[1672769563010,2.19569819,16651.0,16650.0,0.119]
[1672769563745,2.01521568,16651.0,16650.0,0.119]
[1672769564759,1.83431568,16651.0,16650.0,0.119]
[1672769565015,1.21753668,16651.0,16650.0,0.119]
[1672769565748,1.83431568,16651.0,16650.0,0.119]
[1672769565983,2.19444568,16651.0,16650.0,0.119]
[1672769566237,2.79500968,16651.0,16650.0,0.119]
[1672769566491,2.01479819,16651.0,16650.0,0.119]
[1672769566742,1.39801919,16651.0,16650.0,0.119]
[1672769567725,2.01479819,16651.0,16650.0,0.119]
[1672769567973,2.19444062,16651.0,16650.0,0.119]
[1672769568475,1.83431062,16651.0,16650.0,0.119]
[1672769568718,1.21753162,16651.0,16650.0,0.119]
[1672769569957,1.57766162,16651.0,16650.0,0.119]
[1672769570207,2.01479819,16651.0,16650.0,0.119]
[1672769570699,2.19447882,16651.0,16650.0,0.119]
[1672769570949,2.01479819,16651.0,16650.0,0.119]
[1672769571193,1.39801919,16651.0,16650.0,0.119]
[1672769571698,1.99858319,16651.0,16650.0,0.119]
[1672769571951,2.79601942,16651.0,16650.0,0.119]
[1672769572162,2.19545542,16651.0,16650.0,0.119]
[1672769572968,2.79601942,16651.0,16650.0,0.119]
[1672769573461,2.79534601,16651.0,16650.0,0.119]
[1672769574123,2.43588942,16651.0,16650.0,0.119]
[1672769575431,3.03645342,16651.0,16650.0,0.119]
[1672769576197,2.58629026,16651.0,16650.0,0.119]
[1672769577494,1.98572626,16651.0,16650.0,0.119]
[1672769577996,1.8347773,16651.0,16650.0,0.119]
[1672769578986,1.83502518,16651.0,16650.0,0.119]
[1672769579479,1.83502518,16651.0,16650.0,1.019]
[1672769579726,1.21824618,16651.0,16650.0,1.019]
[1672769579965,1.83502518,16651.0,16650.0,1.01890563]
[1672769580263,1.38516226,16651.0,16650.0,1.01890563]
[1672769580533,0.76838326,16651.0,16650.0,1.01890563]
[1672769581029,1.36894726,16651.0,16650.0,1.01890563]
[1672769581275,2.52633831,16651.0,16650.0,1.01890563]
[1672769581534,3.12690231,16651.0,16650.0,1.01890563]
[1672769582039,2.52633831,16651.0,16650.0,1.01890563]
[1672769582307,1.92577431,16651.0,16650.0,1.01890563]
[1672769582806,2.52633831,16651.0,16650.0,1.01890563]
[1672769583570,3.12690231,16651.0,16650.0,1.01890563]
[1672769584341,3.12690231,16651.0,16650.0,0.11890563]
[1672769584843,2.52633831,16651.0,16650.0,0.11890563]
[1672769585899,3.12690231,16651.0,16650.0,0.11890563]
[1672769586150,2.58629026,16651.0,16650.0,0.11890563]
[1672769586911,2.52613683,16651.0,16650.0,0.11890563]
[1672769587169,1.98572626,16651.0,16650.0,0.11890563]
[1672769587420,2.58629026,16651.0,16650.0,0.11890563]
[1672769591707,1.98572626,16651.0,16650.0,0.11890563]
[1672769592210,1.38516226,16651.0,16650.0,0.11890563]
[1672769592717,2.52633048,16651.0,16650.0,0.11890563]
[1672769592964,1.98562838,16651.0,16650.0,0.11890563]
[1672769593220,1.90945822,16651.0,16650.0,0.11890563]
[1672769593777,2.51002222,16651.0,16650.0,0.11890563]
[1672769594051,1.38506438,16651.0,16650.0,0.11890563]
[1672769594273,1.92573164,16651.0,16650.0,0.11890563]
[1672769594776,0.93718633,16651.0,16650.0,0.11890563]
[1672769595030,1.55396533,16651.0,16650.0,1.01890563]
[1672769595394,0.93718633,16651.0,16650.0,1.61950563]
[1672769595822,0.93718633,16651.0,16650.0,1.01890563]
[1672769598075,0.39651907,16651.0,16650.0,1.01890563]
[1672769598340,0.93718633,16651.0,16650.0,1.61950563]
[1672769598585,0.39651907,16651.0,16650.0,1.99574839]
[1672769599845,0.002,16651.0,16650.0,1.99574839]
[1672769600103,0.002,16651.0,16650.0,4.84500751]
[1672769600104,0.45250915,16651.0,16650.0,4.84500751]
[1672769600346,0.81290651,16651.0,16650.0,4.84500751]
[1672769600596,0.81290651,16651.0,16650.0,4.24440751]
[1672769600846,0.81290651,16651.0,16650.0,3.94440751]
[1672769604544,0.63255809,16651.0,16650.0,4.24440751]
[1672769604778,1.08306724,16651.0,16650.0,3.94440751]
[1672769605247,0.63255809,16651.0,16650.0,4.24440751]
[1672769605503,0.45226159,16651.0,16650.0,4.25290751]
[1672769606249,0.81265895,16651.0,16650.0,3.95290751]
[1672769606514,0.63255809,16651.0,16650.0,4.25290751]
[1672769606824,0.63255809,16651.0,16650.0,3.95290751]
[1672769607592,1.08306724,16651.0,16650.0,3.95290751]
[1672769608106,0.63255809,16651.0,16650.0,3.95290751]
[1672769610483,0.63255809,16651.0,16650.0,3.77210751]
[1672769611389,0.63255809,16651.0,16650.0,4.37443892]
[1672769611632,0.63255809,16651.0,16650.0,3.77383892]
[1672769611880,0.81258444,16651.0,16650.0,3.95413892]
[1672769612145,0.45218708,16651.0,16650.0,4.85473892]
[1672769612896,0.45218708,16651.0,16650.0,4.25413892]
[1672769613160,0.18202635,16651.0,16650.0,4.25413892]
[1672769613421,0.45218708,16651.0,16650.0,3.95413892]
[1672769613673,0.45218708,16651.0,16650.0,3.95404739]
[1672769614176,0.45218708,16651.0,16650.0,4.55464739]
[1672769615488,0.45218708,16651.0,16650.0,4.85492739]
[1672769618196,0.45218708,16651.0,16650.0,3.55432739]
[1672769618980,0.45218708,16651.0,16650.0,4.15492739]
[1672769619201,0.45218708,16651.0,16650.0,4.85492739]
[1672769620481,0.45218708,16651.0,16650.0,3.35432739]
[1672769620742,0.45218708,16651.0,16650.0,3.35268255]
[1672769621005,0.63255809,16651.0,16650.0,2.97643979]
[1672769621254,0.63255809,16651.0,16650.0,3.35268255]
[1672769621515,0.63255809,16651.0,16650.0,2.37577322]
[1672769621774,1.6497251,16651.0,16650.0,1.1885141]
[1672769622042,1.37722826,16651.0,16650.0,0.8273141]
[1672769622296,1.81623316,16651.0,16650.0,0.1273141]
[1672769622574,1.74012142,16651.0,16650.0,0.1273141]
[1672769622840,2.95746442,16651.0,16650.0,0.1273141]
[1672769623083,1.74012142,16651.0,16650.0,0.1273141]
[1672769623407,1.74012142,16651.0,16650.0,0.1188141]
[1672769623408,3.17372347,16651.0,16650.0,0.1188141]
[1672769623601,2.63305621,16651.0,16650.0,0.1188141]
[1672769623855,3.1730754,16651.0,16650.0,0.1188141]
[1672769624108,3.1710754,16651.0,16647.0,2.04326132]
[1672769624359,0.45001727,16649.0,16648.0,0.7]
[1672769624632,0.73997355,16649.0,16648.0,0.7]
[1672769624878,0.73997355,16649.0,16648.0,0.0085]
[1672769625435,1.71672586,16649.0,16648.0,0.0085]
[1672769625796,1.09994732,16649.0,16648.0,0.0085]
[1672769626223,0.74297355,16649.0,16648.0,0.1185]
[1672769626746,1.35975255,16649.0,16648.0,0.1185]
[1672769627280,0.74297355,16649.0,16648.0,0.1185]
[1672769627504,1.35975255,16649.0,16648.0,0.1185]
[1672769628022,1.35975255,16649.0,16648.0,0.11]
[1672769628277,0.74297355,16649.0,16648.0,0.11]
[1672769628570,1.35975255,16649.0,16648.0,0.11]
[1672769628831,1.42970751,16649.0,16648.0,1.36468222]
[1672769629077,0.63283125,16649.0,16648.0,2.15466467]
[1672769629911,0.63283125,16649.0,16648.0,3.45542622]
[1672769629912,0.45286301,16649.0,16648.0,3.45542622]
[1672769633970,0.45286301,16649.0,16648.0,3.45533667]
[1672769635710,0.81277425,16649.0,16648.0,2.85466467]
[1672769635941,0.45286301,16649.0,16648.0,2.85466467]
[1672769636213,0.81277425,16649.0,16648.0,2.25399267]
[1672769636470,0.63283125,16649.0,16648.0,2.25399267]
[1672769636721,0.63283125,16649.0,16648.0,2.24681127]
[1672769637228,0.63283125,16649.0,16648.0,0.9994]
[1672769637484,0.63283125,16649.0,16648.0,1.600072]
[1672769637735,1.18917127,16649.0,16648.0,1.600072]
[1672769638251,1.18917127,16649.0,16648.0,1.60000378]
[1672769638762,1.55770864,16649.0,16648.0,1.60000378]
[1672769639013,1.18146588,16649.0,16648.0,0.29933178]
[1672769639256,1.55770864,16649.0,16648.0,0.29933178]
[1672769639516,2.17448764,16649.0,16648.0,0.29933178]
[1672769639776,1.8145764,16649.0,16648.0,0.10993178]
[1672769640032,0.74778013,16649.0,16648.0,0.10993178]
[1672769640299,0.99602176,16649.0,16648.0,0.10993178]
[1672769640551,3.69699064,16649.0,16648.0,0.10993178]
[1672769641053,3.15697145,16649.0,16648.0,0.10993178]
[1672769641814,3.15397145,16649.0,16646.0,0.02940287]
[1672769642071,0.44970385,16647.0,16646.0,0.02940287]
[1672769642319,0.99302176,16647.0,16646.0,0.02940287]
[1672769643098,0.99302176,16647.0,16646.0,0.06240287]
[1672769643363,1.59372976,16647.0,16646.0,0.06240287]
[1672769644376,0.97695076,16647.0,16646.0,0.06240287]
[1672769644614,2.03074414,16647.0,16646.0,0.06240287]
[1672769644868,2.48020012,16647.0,16646.0,0.06240287]
[1672769645357,2.83975827,16647.0,16646.0,0.37843591]
[1672769645601,2.22297927,16647.0,16646.0,0.37834635]
[1672769645858,3.44046627,16647.0,16646.0,0.37834635]
[1672769646108,2.82368727,16647.0,16646.0,0.37834635]
[1672769646363,2.83975827,16647.0,16646.0,0.37834635]
[1672769646614,2.22297927,16647.0,16646.0,0.37834635]
[1672769646837,2.83975827,16647.0,16646.0,0.37834635]
[1672769647125,2.22297927,16647.0,16646.0,0.37834635]
[1672769647381,2.83975827,16647.0,16646.0,0.37834635]
[1672769647637,2.22297927,16647.0,16646.0,0.37834635]
[1672769647881,2.83975827,16647.0,16646.0,0.37834635]
[1672769648132,1.62227127,16647.0,16646.0,0.37834635]
[1672769648377,2.23905027,16647.0,16646.0,0.06240287]
[1672769648620,1.94885033,16647.0,16646.0,0.06240287]
[1672769648887,3.76704533,16647.0,16646.0,0.06240287]
[1672769649149,3.15026633,16647.0,16646.0,0.06240287]
[1672769649406,3.76704533,16647.0,16646.0,0.06240287]
[1672769651109,4.20381976,16647.0,16646.0,0.06240287]
[1672769651361,3.76704533,16647.0,16646.0,0.06240287]
[1672769651616,3.15026633,16647.0,16646.0,0.06240287]
[1672769651886,3.16633733,16647.0,16646.0,0.06240287]
[1672769652137,2.56562933,16647.0,16646.0,0.06240287]
[1672769652388,1.94885033,16647.0,16646.0,0.06240287]
[1672769652663,2.12861495,16647.0,16646.0,0.06240287]
[1672769652922,1.95077488,16647.0,16646.0,0.06240287]
[1672769653401,2.56755388,16647.0,16646.0,0.06240287]
[1672769653955,2.12861495,16647.0,16646.0,0.06240287]
[1672769654200,1.78133829,16647.0,16646.0,0.06240287]
[1672769654665,2.55247815,16647.0,16646.0,0.06240287]
[1672769654923,3.16925715,16647.0,16646.0,0.24170287]
[1672769655161,2.55247815,16647.0,16646.0,0.24170287]
[1672769655679,2.11254395,16647.0,16646.0,0.24170287]
[1672769655931,2.55380796,16647.0,16646.0,0.24170287]
[1672769656921,3.77129496,16647.0,16646.0,0.24170287]
[1672769657176,3.17058696,16647.0,16646.0,0.24170287]
[1672769657425,2.81102881,16647.0,16646.0,0.24170287]
[1672769657674,2.19424981,16647.0,16646.0,0.24170287]
[1672769657928,2.81102881,16647.0,16646.0,0.24170287]
[1672769658178,2.19424981,16647.0,16646.0,0.24170287]
[1672769658426,2.96228083,16647.0,16646.0,0.24170287]
[1672769658682,2.36157283,16647.0,16646.0,0.24170287]
[1672769659191,1.74479383,16647.0,16646.0,0.24170287]
[1672769659444,2.36157283,16647.0,16646.0,0.24170287]
[1672769659704,1.74479383,16647.0,16646.0,0.24170287]
[1672769659955,2.8110029,16647.0,16646.0,0.24170287]
[1672769660203,2.1942239,16647.0,16646.0,0.06240287]
[1672769660711,1.74479383,16647.0,16646.0,0.06240287]
[1672769661205,1.74479383,16647.0,16646.0,0.06249243]
[1672769661450,1.59369778,16647.0,16646.0,0.06240287]
[1672769661938,1.59369778,16647.0,16646.0,0.06230188]
[1672769663479,0.89087596,16647.0,16646.0,0.42600514]
[1672769663983,1.50765496,16647.0,16646.0,0.42600514]
[1672769664223,1.25059544,16647.0,16646.0,0.78650514]
[1672769664471,0.89087596,16647.0,16646.0,0.78650514]
[1672769664728,1.25059557,16647.0,16646.0,0.78650514]
[1672769664985,0.80933156,16647.0,16646.0,0.78650514]
[1672769665495,0.80933156,16647.0,16646.0,1.1627479]
[1672769665748,0.80933156,16647.0,16646.0,1.9528919]
[1672769665749,0.44961552,16647.0,16646.0,1.9528919]
[1672769665995,0.44961552,16647.0,16646.0,3.1543799]
[1672769666271,0.44961552,16647.0,16646.0,2.5536359]
[1672769666515,0.44961552,16647.0,16646.0,3.1543799]
[1672769666758,0.44961552,16647.0,16646.0,2.5536359]
[1672769667017,0.44961552,16647.0,16646.0,3.1543799]
[1672769667255,0.44961552,16647.0,16646.0,2.5536359]
[1672769667537,0.44961552,16647.0,16646.0,3.2536359]
[1672769668547,0.17984342,16647.0,16646.0,3.8543799]
[1672769668793,0.17984342,16647.0,16646.0,3.2536359]
[1672769669044,0.17984342,16647.0,16646.0,3.5536359]
[1672769669295,0.17984342,16647.0,16646.0,3.8543799]
[1672769669542,0.17984342,16647.0,16646.0,4.1543799]
[1672769669810,0.17984342,16647.0,16646.0,3.2536359]
[1672769670339,0.44961552,16647.0,16646.0,3.07264634]
[1672769672636,0.62949171,16647.0,16646.0,3.07264634]
[1672769674375,1.07910366,16647.0,16646.0,3.07264634]
[1672769674620,0.80933156,16647.0,16646.0,3.07264634]
[1672769674864,0.80933156,16647.0,16646.0,3.08136363]
[1672769675108,0.80933156,16647.0,16646.0,3.38172363]
[1672769678085,0.80933156,16647.0,16646.0,2.68172363]
[1672769678580,0.90449484,16647.0,16646.0,2.68172363]
[1672769679096,0.90449484,16647.0,16646.0,3.38172363]
[1672769679348,0.44961195,16647.0,16646.0,3.38172363]
[1672769682923,0.45488289,16647.0,16646.0,3.38172363]
[1672769683177,0.45488289,16647.0,16646.0,2.78097963]
[1672769683425,0.99452752,16648.0,16646.0,2.78097963]
[1672769683693,0.79452752,16648.0,16647.0,1.03860792]
[1672769683947,0.77783951,16648.0,16647.0,1.03860792]
[1672769684199,1.37851151,16648.0,16647.0,1.03860792]
[1672769684441,1.99529051,16648.0,16647.0,1.03860792]
[1672769684683,2.04429051,16648.0,16647.0,1.03860792]
[1672769684935,1.39461851,16648.0,16647.0,1.03860792]
[1672769685220,0.82683951,16648.0,16647.0,1.04060792]
[1672769685464,1.44361851,16648.0,16647.0,1.04060792]
[1672769686465,1.17939651,16648.0,16647.0,1.04060792]
[1672769686715,0.82683951,16648.0,16647.0,1.04060792]
[1672769686975,1.44361851,16648.0,16647.0,1.04060792]
[1672769687224,0.82683951,16648.0,16647.0,1.04060792]
[1672769687470,1.44361851,16648.0,16647.0,1.04060792]
[1672769687940,0.82683951,16648.0,16647.0,1.04060792]
[1672769688197,1.44361851,16648.0,16647.0,1.04060792]
[1672769688469,1.17939651,16648.0,16647.0,1.04060792]
[1672769688681,0.82683951,16648.0,16647.0,1.04060792]
[1672769688969,1.44361851,16648.0,16647.0,1.04060792]
[1672769692672,1.44361851,16648.0,16647.0,0.54060792]
[1672769695970,1.10397388,16648.0,16647.0,0.54060792]
[1672769696519,0.83975188,16648.0,16647.0,0.54060792]
[1672769696778,1.10397388,16648.0,16647.0,0.54060792]
[1672769697008,1.10397388,16648.0,16647.0,1.51998958]
[1672769697262,0.48719488,16648.0,16647.0,1.51998958]
[1672769698514,0.82683951,16648.0,16647.0,1.14131592]
[1672769698771,1.10397388,16648.0,16647.0,0.54060792]
[1672769699278,0.82683951,16648.0,16647.0,0.54060792]
[1672769700268,1.44361851,16648.0,16647.0,0.54060792]
[1672769700520,0.82683951,16648.0,16647.0,0.54060792]
[1672769700763,1.44361851,16648.0,16647.0,0.91928158]
[1672769701028,0.82683951,16648.0,16647.0,1.51998958]
[1672769701269,0.82683951,16648.0,16647.0,0.91928158]
[1672769701512,0.82683951,16648.0,16647.0,0.54060792]
[1672769701805,1.44361851,16648.0,16647.0,0.54060792]
[1672769702043,1.44361851,16648.0,16647.0,1.94060792]
[1672769702286,0.48719488,16648.0,16647.0,3.70159758]
[1672769703072,0.86027346,16648.0,16647.0,4.23954901]
[1672769703320,0.86027346,16648.0,16647.0,4.54025701]
[1672769703825,0.86027346,16648.0,16647.0,5.24025701]
[1672769704082,1.29742529,16648.0,16647.0,5.24025701]
[1672769704375,1.29742529,16648.0,16647.0,4.973394]
[1672769704868,1.29742529,16648.0,16647.0,5.273704]
[1672769705413,0.86027346,16648.0,16647.0,5.273704]
[1672769705904,1.29733215,16648.0,16647.0,5.273704]
[1672769706161,1.29731929,16648.0,16647.0,5.273704]
[1672769707412,0.86027346,16648.0,16647.0,5.273704]
[1672769707651,0.86027346,16648.0,16647.0,3.772996]
[1672769707939,0.4997138,16648.0,16647.0,3.772996]
[1672769708155,0.93500294,16648.0,16647.0,3.772996]
[1672769709230,0.93500294,16648.0,16647.0,4.373704]
[1672769709442,0.86004666,16648.0,16647.0,4.373704]
[1672769709941,1.2953358,16648.0,16647.0,4.373704]
[1672769711180,0.86004666,16648.0,16647.0,4.373704]
[1672769711397,1.29527129,16648.0,16647.0,4.373704]
[1672769712184,0.86004666,16648.0,16647.0,4.373704]
[1672769712954,1.2962033,16648.0,16647.0,4.373704]
[1672769713171,1.2962033,16648.0,16647.0,4.373714]
[1672769713420,0.86004666,16648.0,16647.0,4.373714]
[1672769714187,1.29617797,16648.0,16647.0,4.373714]
[1672769714444,1.29617797,16648.0,16647.0,3.773006]
[1672769714935,0.93584511,16648.0,16647.0,3.773006]
[1672769715933,0.93584511,16648.0,16647.0,2.172508]
[1672769715934,0.48513131,16648.0,16647.0,2.172508]
[1672769716209,1.44155494,16648.0,16647.0,2.172508]
[1672769716704,1.44155494,16648.0,16647.0,1.47240832]
[1672769716964,1.44155494,16648.0,16647.0,0.87170032]
[1672769717745,1.45616992,16648.0,16647.0,1.47240832]
[1672769717987,0.83939092,16648.0,16647.0,1.85108198]
[1672769718240,0.49974629,16648.0,16647.0,3.10074909]
[1672769720713,0.4993927,16648.0,16647.0,3.10074909]
[1672769721230,0.49974629,16648.0,16647.0,3.10074909]
[1672769721475,0.95015258,16648.0,16647.0,3.10074909]
[1672769721975,0.49974629,16648.0,16647.0,2.80040909]
[1672769723981,0.49974629,16648.0,16647.0,2.62000909]
[1672769724449,0.49974629,16648.0,16647.0,2.92034909]
[1672769725199,0.4994317,16648.0,16647.0,3.62034909]
[1672769725694,0.4994317,16648.0,16647.0,4.22104709]
[1672769725942,0.95017799,16648.0,16647.0,4.22104709]
[1672769726724,0.95017799,16648.0,16647.0,3.62033909]
[1672769728263,0.95017799,16648.0,16647.0,3.62034909]
[1672769728790,0.95024574,16648.0,16647.0,3.62034909]
[1672769729052,0.49974629,16648.0,16647.0,3.62034909]
[1672769731364,0.49974629,16648.0,16647.0,2.92034909]
[1672769731870,0.49974629,16648.0,16647.0,2.92035909]
[1672769732375,0.49974629,16648.0,16647.0,3.62035909]
[1672769733926,0.49974629,16648.0,16647.0,3.32000909]
[1672769734202,0.49974629,16648.0,16647.0,3.62034909]
[1672769737296,0.49974629,16648.0,16647.0,3.62024968]
[1672769740068,0.49974629,16648.0,16647.0,2.92024968]
[1672769742306,0.49974629,16648.0,16647.0,3.52095768]
[1672769742307,0.95038325,16648.0,16647.0,3.52095768]
[1672769742552,0.95038325,16648.0,16647.0,4.22095768]
[1672769742805,1.31088442,16648.0,16647.0,4.22095768]
[1672769743070,1.31088442,16648.0,16647.0,5.43060931]
[1672769743326,0.31937897,16648.0,16647.0,5.71852543]
[1672769743578,0.49958892,16648.0,16647.0,5.71852543]
[1672769743834,0.49958892,16648.0,16647.0,5.43060931]
[1672769744102,0.49958892,16648.0,16647.0,5.75404696]
[1672769746625,0.67988014,16648.0,16647.0,4.37598622]
[1672769746865,1.1305171,16648.0,16647.0,4.37598622]
[1672769747113,0.67988014,16648.0,16647.0,4.37598622]
[1672769747378,0.86013813,16648.0,16647.0,4.37598622]
[1672769747631,1.30667647,16648.0,16647.0,4.37598622]
[1672769749141,0.9461753,16648.0,16647.0,4.37598622]
[1672769750173,1.30656762,16648.0,16647.0,4.37598622]
[1672769750413,1.30656762,16648.0,16647.0,4.19578622]
[1672769750665,0.9461753,16648.0,16647.0,4.19578622]
[1672769751164,0.9461753,16648.0,16647.0,4.19576622]
[1672769751627,0.9461753,16648.0,16647.0,4.46397799]
[1672769751889,1.30657151,16648.0,16647.0,4.19576622]
[1672769753426,1.30558538,16648.0,16647.0,3.49576622]
[1672769753697,0.67968294,16648.0,16647.0,5.67729632]
[1672769754444,0.85987071,16648.0,16647.0,5.67729632]
[1672769754701,0.4994745,16648.0,16647.0,5.67729632]
[1672769758426,0.4994745,16648.0,16647.0,5.37729632]
[1672769758939,0.4994745,16648.0,16647.0,5.67729632]
[1672769759431,0.4994745,16648.0,16647.0,5.37729632]
[1672769759686,0.4994745,16648.0,16647.0,5.09576622]
[1672769760191,0.4994745,16648.0,16647.0,5.27576622]
[1672769761197,0.4994745,16648.0,16647.0,5.89254522]
[1672769761439,0.85983981,16648.0,16647.0,5.57576622]
[1672769761715,0.67968294,16648.0,16647.0,5.57576622]
[1672769761964,0.67968294,16648.0,16647.0,5.27576622]
[1672769762290,0.49944247,16648.0,16647.0,5.27576622]
[1672769762494,0.49944247,16648.0,16647.0,5.67576622]
[1672769762972,0.49944247,16648.0,16647.0,5.95830757]
[1672769763737,0.49944247,16648.0,16647.0,6.94566853]
[1672769764741,0.49944247,16648.0,16647.0,6.32888953]
[1672769765242,0.67968294,16648.0,16647.0,4.84634818]